Cogmind - Beta 13 X1 @@@ ROGUE MODE // 2023.09.28 @ 17:57:27 Player: f3-rnm Result: Destroyed by 0N-0AJ(R) with Subdweller Machine Gun Performance ------------- Evolutions (0) 0 Regions Visited (2) 400 Robots Destroyed (39) 195 Value Destroyed (788) 788 Prototype IDs (0) 0 Alien Tech Used (0) 0 Bonus (0) 0 TOTAL SCORE: 1383 Bonus ------- None Cogmind --------- Core Integrity 0/250 Matter 159/300 Energy 200/200 System Corruption 0% Temperature Cool (0) Movement Treading (160) Location -10/Subcaves Parts ------- > --- POWER (1) -------- Subdweller Power Source > --- PROPULSION (2) --- Light Treads Light Treads > --- UTILITY (2) ------ Scrap Shield > --- WEAPON (2) ------- Improved Light Cannon Improved Light Cannon > --- INVENTORY (5) ---- Medium Matter Pod (0) Slug Cannon Subdweller Shrapnel Launcher Ripper Peak State ------------ > --- POWER ------------ Subdweller Power Source > --- PROPULSION ------- Light Treads Light Treads > --- UTILITY ---------- Scrap Shield > --- WEAPON ----------- Improved Light Cannon Makeshift Axe > --- INVENTORY -------- Subdweller Power Source Medium Matter Pod Battle Rifle Improved Light Cannon Slug Cannon [Rating: 15] Favorites ----------- Power Light Ion Engine Engine Light Ion Engine Propulsion Light Treads Treads Light Treads Utility Large Storage Unit Device Disposable Heat Sink Storage Large Storage Unit Processor Visual Processing Unit Protection Core Shielding Weapon Improved Light Cannon Energy Gun Medium Laser Energy Cannon Beam Cannon Ballistic Cannon Improved Light Cannon Slashing Weapon Makeshift Axe Build | -11 -10 -10 ------- Run | Jun Mat Sub Slots Evolved . | . . . Power . | . . . Propulsion . | . . . Utility . | . . . Weapon . | . . . Parts Attached 32 | 6 9 17 Power 6 | 1 2 3 Engine 6 | 1 2 3 Core . | . . . Reactor . | . . . Propulsion 6 | 2 1 3 Treads 6 | 2 1 3 Leg . | . . . Wheel . | . . . Hover . | . . . Flight . | . . . Utility 8 | 1 4 3 Device 3 | . 1 2 Storage 2 | 1 1 . Processor 1 | . 1 . Hackware . | . . . Protection 2 | . 1 1 Artifact . | . . . Weapon 12 | 2 2 8 Energy Gun 2 | 2 . . Energy Cannon 2 | . 1 1 Ballistic Gun . | . . . Ballistic Cannon 6 | . 1 5 Launcher . | . . . Special Weapon . | . . . Impact Weapon . | . . . Slashing Weapon 2 | . . 2 Piercing Weapon . | . . . Special Melee Weapon . | . . . Unidentified Prototypes . | . . . Parts Lost 7 | . 2 5 Power 4 | . 2 2 Propulsion 3 | . . 3 Utility . | . . . Weapon . | . . . Highest Loss Streak 1 | . 1 1 To Critical Strikes . | . . . Average Slot Usage (%) 97 | . 99 96 Engine 13 | . 13 13 Treads 27 | . 27 28 Device 11 | . 8 12 Storage 12 | . 14 11 Protection 2 | . 4 1 Energy Cannon 10 | . 12 8 Ballistic Cannon 16 | . 12 18 Naked Turns . | . . . Heaviest Build 34 | 11 31 34 Greatest Support 40 | 40 40 40 Greatest Overweight (x) . | . . . Average Overweight (x) . | . . . Largest Inventory Capacity 15 | 8 15 15 Average Capacity 13 | 6 13 13 Most Carried 15 | 5 15 15 Average Carried 11 | 1 11 11 Final Capacity 15 | 8 15 5 Final Carried 15 | 1 15 4 Class Distribution -------------------- 100% | Mutant Dominant Class ---------------- Mutant | -10/Materials Mutant | -10/Subcaves Resources | -11 -10 -10 ----------- Run | Jun Mat Sub Matter Collected 1306 | 225 382 699 Remotely . | . . . Salvage Created 799 | . 540 259 Parts 81 | . 63 18 Haulers Intercepted 2 | . 2 . Recyclers Shooed . | . . . Parts Field Recycled . | . . . Retrieved Matter . | . . . Parts Self-Destructed 10 | . . 10 Prevented . | . . . Kills | -11 -10 -10 ------- Run | Jun Mat Sub Combat Hostiles Destroyed 27 | . 14 13 Cannons 27 | . 14 13 Classes Destroyed 9 | . 8 1 Worker 5 | . 5 . Builder 1 | . 1 . Hauler 2 | . 2 . Recycler 1 | . 1 . Operator 1 | . 1 . Watcher 2 | . 2 . Swarmer 12 | . 9 3 Grunt 5 | . 5 . Subdweller 10 | . . 10 Best Kill Streak 5 | . 5 3 Combat Bots Only 3 | . 3 3 Max Kills in Single Turn 3 | . 3 1 Gunslinging . | . . . Exploded . | . . . Melee . | . . . Uniques/NPCs Destroyed . | . . . Combat | -11 -10 -10 -------- Run | Jun Mat Sub Damage Taken 1475 | . 390 1085 Core 252 | . 32 220 Absorbed by Shields . | . . . Redirected to Shielding 2 | . 2 . Regen/Repaired (Parts) 69 | . 69 . Core Remaining (%) 100 | 100 . . Volleys Fired 125 | . 47 78 Largest 2 | . 2 2 Hottest 110 | . 110 99 Shots Fired 250 | . 94 156 Gun 4 | . 4 . Cannon 246 | . 90 156 Launcher . | . . . Special . | . . . Kinetic 138 | . 44 94 Thermal 112 | . 50 62 Explosive . | . . . Electromagnetic . | . . . Robot Hit Streak 15 | . 5 15 Robot Miss Streak 3 | . 3 3 Penetration Max . | . . . Secondary Targets . | . . . Shots Hit Robots 122 | . 41 81 Core Hits 48 | . 26 22 Critical Kills . | . . . Critical Parts Destroyed . | . . . Critical Strikes . | . . . Melee Attacks 19 | . . 19 Impact . | . . . Slashing 19 | . . 19 Piercing . | . . . Sneak Attacks . | . . . Combat Hostiles . | . . . Follow-up Attacks . | . . . Damage Inflicted 2531 | . 1009 1522 Guns 12 | . 12 . Cannons 2357 | . 835 1522 Explosions 162 | . 162 . Melee . | . . . Ramming . | . . . Kinetic 1444 | . 426 1018 Thermal 1038 | . 534 504 Explosive 49 | . 49 . Electromagnetic . | . . . Impact . | . . . Slashing . | . . . Piercing . | . . . Highest Corruption . | . . . Average Corruption . | . . . Corruption Purged . | . . . Corruption Blocked . | . . . Overload Shots . | . . . Overflow Damage 40 | . 40 . Projectiles 17 | . 17 . Explosions 23 | . 23 . Melee . | . . . Knockbacks 12 | . 6 6 Impact . | . . . Kinetic 11 | . 5 6 Secondary 1 | . 1 . Self-Inflicted Damage 54 | . 54 . Shots 1 | . 1 . Rammed . | . . . Targets Rammed . | . . . Kicked . | . . . Crushed . | . . . Highest Temperature 273 | . 273 212 Average Temperature 68 | . 67 85 Received Heat Transfer 506 | . 30 476 Siege Activations . | . . . Robots Corrupted . | . . . Combat Hostiles . | . . . Parts Fried . | . . . Impact Corruptions . | . . . Robots Melted . | . . . Combat Hostiles . | . . . Parts Melted 2 | . . 2 Heat Transferred 2111 | . 1038 1073 Parts Sabotaged . | . . . Parts Stolen . | . . . Parts Stripped . | . . . Power Chain Reactions . | . . . Missiles Intercepted . | . . . Alert | -11 -10 -10 ------- Run | Jun Mat Sub Peak Influence 229 | . 229 . Initial . | . . . Average 112 | . 117 . Maximum Alert Level 1 | . 1 . Low Security (%) 75 | 100 74 . Level 1 24 | . 25 . Level 2 . | . . . Level 3 . | . . . Level 4 . | . . . Level 5 . | . . . High Security . | . . . Max Security . | . . . Squads Dispatched 2 | . 2 . Investigation 1 | . 1 . Extermination . | . . . Reinforcement 1 | . 1 . Assault . | . . . Garrison . | . . . Intercept . | . . . Searches Triggered . | . . . Construction Impeded . | . . . Haulers Reinforced . | . . . Active Scanning Responses . | . . . Cargo Convoy Interrupts . | . . . Stealth | -11 -10 -10 --------- Run | Jun Mat Sub Distress Signals 1 | . 1 . Communications Jammed . | . . . Distress Signals . | . . . Times Spotted 39 | . 23 16 Peak Tracking Total 6 | . 4 6 Tactical Retreats 2 | . 1 1 Traps | -11 -10 -10 ------- Run | Jun Mat Sub Traps Triggered 1 | . 1 . Indirectly . | . . . Trap Hack Attempts . | . . . Triggered . | . . . Disarmed . | . . . Reprogrammed . | . . . Reused . | . . . Traps Extracted . | . . . Installed . | . . . Triggered 2 | . . 2 Machines | -11 -10 -10 ---------- Run | Jun Mat Sub Machines Disabled 3 | . 3 . Max in Single Turn 2 | . 2 . Machines Repaired . | . . . Machines Sabotaged . | . . . Overloaded Fab Kills . | . . . Hacking | -11 -10 -10 --------- Run | Jun Mat Sub Machines Accessed 5 | . 4 1 Terminals 3 | . 3 . Fabricators . | . . . Repair Stations 1 | . 1 . Recycling Units . | . . . Scanalyzers . | . . . Garrison Access . | . . . Total Hacks 12 | . 10 2 Successful 7 | . 5 2 Failed 5 | . 5 . Catastrophic . | . . . Database Lockouts . | . . . Manual 3 | . 3 . Terminals 7 | . 7 . Fabricators . | . . . Repair Stations 3 | . 3 . Recycling Units . | . . . Scanalyzers . | . . . Garrison Access . | . . . Terminal Hacks 5 | . 3 2 Record 2 | . . 2 Robot Analysis 1 | . 1 . Zone Layout 2 | . 2 . Fabricator Hacks . | . . . Repair Station Hacks 2 | . 2 . Scan Component 1 | . 1 . Repair 1 | . 1 . Recycling Unit Hacks . | . . . Scanalyzer . | . . . Garrison Access Hacks . | . . . Unauthorized Hacks . | . . . Terminals . | . . . Fabricators . | . . . Repair Stations . | . . . Recycling Units . | . . . Scanalyzers . | . . . Garrison Access . | . . . Data Cores Recovered . | . . . Used . | . . . Hacking Detections 2 | . 2 . Full Trace Events . | . . . Feedback Events . | . . . Feedback Blocked . | . . . Robot Schematics Acquired . | . . . Robots Built . | . . . Authchips . | . . . Time . | . . . Total Robot Build Rating . | . . . Part Schematics Acquired . | . . . Parts Built . | . . . Authchips . | . . . Time . | . . . Total Part Build Rating . | . . . Parts Repaired 1 | . 1 . Time 26 | . 26 . Parts Recycled . | . . . Recycled Matter . | . . . Retrieved Matter . | . . . Retrieved Components . | . . . Parts Scanalyzed . | . . . Part Schematics Acquired . | . . . Parts Damaged . | . . . Bothacking | -11 -10 -10 ------------ Run | Jun Mat Sub Used RIF Installer . | . . . Robots Hacked . | . . . Non-combat . | . . . Combat . | . . . Robot Hacks Applied . | . . . Relay Couplers Released . | . . . Fabnet Peak Effective % . | . . . Robots Rewired . | . . . Allies Hacked . | . . . Hacks Repelled . | . . . Allies | -11 -10 -10 -------- Run | Jun Mat Sub Total Allies . | . . . Largest Group . | . . . Highest-Rated Group . | . . . Highest-Rated Ally . | . . . Total Orders . | . . . Ally Attacks . | . . . Total Damage . | . . . Kills . | . . . Allies Corrupted . | . . . Allies Melted . | . . . Intel | -11 -10 -10 ------- Run | Jun Mat Sub Robot Analysis Total 1 | . 1 . Derelict Logs Recovered 2 | . . 2 Drone Launches . | . . . Drone Recoveries . | . . . Exploration | -11 -10 -10 ------------- Run | Jun Mat Sub Turns Passed 5074 | 68 1572 3434 Spaces Moved 2658 | 40 811 1807 Core 7 | 7 . . Treads 2651 | 33 811 1807 Legs . | . . . Wheels . | . . . Hover . | . . . Flight . | . . . Fastest Speed 50 | 50 160 160 Average Speed 159 | 140 160 160 Slowest Speed 160 | 160 160 160 Overloaded Moves . | . . . Propulsion Burnouts . | . . . Robots Hopped . | . . . Cave-ins Triggered . | . . . Exploration Rate (%) 55 | 4 94 68 Regions Visited 2 Branch Regions 1 Pre-discovered Areas 1 | . . 1 Known Exits Taken . | . . . Unknown Exits Taken 2 | 1 1 . Scrap Searched 11 | . . 11 Spaces Dug 5 | . . 5 Terrain Destroyed 45 | . 40 5 Melee 5 | . . 5 Projectile 3 | . 3 . AOE 37 | . 37 . Terrain Rammed . | . . . Walls Destroyed . | . . . Machines Disabled . | . . . Actions | -11 -10 -10 --------- Run | Jun Mat Sub Total 3225 | 52 996 2177 Wait 329 | . 96 233 Move 2656 | 39 810 1807 Hop . | . . . Pick Up 41 | 7 24 10 Fast Attach 6 | . 3 3 Attach 18 | 6 4 8 Detach . | . . . Swap 8 | . 2 6 Drop 23 | . 10 13 Fire 125 | . 47 78 Melee 19 | . . 19 Ram . | . . . Kick . | . . . Crush . | . . . Escape Stasis . | . . . Rewire . | . . . Trap . | . . . Miscellaneous . | . . . Route ------- -11/Junkyard -10/Materials (discovered 6 exits: [*Mat x3] / [*Min x2] / *Sub) -10/Subcaves (discovered 1 exit: [*Mat]) History --------- Turn | Location | Event 5 | -11/Junkyard | Discovered new exit (range 15) 69 | -11/Junkyard | Entered Materials 301 | -10/Materials | Build established: Mutant 428 | -10/Materials | Discovered new exit (range 6) 483 | -10/Materials | Discovered new exit (range 16) 1021 | -10/Materials | Discovered new exit (range 15) 1245 | -10/Materials | Discovered new exit (range 10) 1381 | -10/Materials | Repaired Lgt. Treads 1405 | -10/Materials | Discovered new exit (range 14) 1637 | -10/Materials | Discovered new exit (range 3) 1641 | -10/Materials | Entered Subcaves 1693 | -10/Subcaves | Learned Materials emergency access door positions 1769 | -10/Subcaves | A swath of the cavern ceiling suddenly collapsed 1816 | -10/Subcaves | Visited Clippyterm 2190 | -10/Subcaves | Learned location of 1 exit from Materials 2723 | -10/Subcaves | Shifting Twisted Machinery released Sub. Power Source 2767 | -10/Subcaves | Shifting Twisted Machinery released Flamer 2989 | -10/Subcaves | Learned location of Zion (-7) 2989 | -10/Subcaves | Met a Zionite searching for "candidates" 3221 | -10/Subcaves | Core integrity fell below 50% 3352 | -10/Subcaves | Core integrity fell below 20% 3957 | -10/Subcaves | Discovered new exit (range 10) 3978 | -10/Subcaves | Shifting Twisted Machinery released Slug Cannon 4083 | -10/Subcaves | Shifting Twisted Machinery released Barrage Gun 4284 | -10/Subcaves | A swath of the cavern ceiling suddenly collapsed 4356 | -10/Subcaves | Shifting Twisted Machinery released Mak. Axe 5075 | -10/Subcaves | Destroyed by 0N-0AJ(R) with Subdweller Machine Gun Last Messages --------------- 04673_ Cobbler Unit puts together Scrap Shield. 04678_ Dropped Med. Matter Pod. 04713_ Cobbler Unit puts together Sub. Power Source. 04715_ Extracted 100 matter. 04725_ Dropped Cobbler Unit. 04727_ Acquired Scrap Shield. 04728_ Dropped Hacking Suite. 04729_ Dropped Battle Cannon. 04758_ Acquired Med. Matter Pod. 04823_ Acquired 19 matter. 04826_ Acquired Mak. Axe. 04963_ Dropped Battle Rifle. 04963_ Acquired Sub. Shrapnel Launcher. 04998_ Dropped Mak. Axe. 04998_ Acquired Ripper. 05041_ Searching scrap... 05041_ Found Scrap Shield. 05041_ Found 42 Matter. 05042_ Acquired 42 matter. 05045_ Dropped Sub. Power Source. Map ----- +----------------------------------------------------+ | ?????????????????????????????????????????????????? | | ?????????????????????????????????????????????????? | | ?????????????????????????????????????????????????? | | ?????????????????????????????????????????????????? | | ?????????????????????????????????????????????????? | | ?????????????????????????????????????????????????? | | ?????????????????????????????????????????????????? | | ?????????????????????????????????????????????????? | | ?????????????????????????????????????????????????? | | ?????????????????????????????????????????????????? | | ?????????????????????????????????????????????????? | | ?????????????????????????????????????????????????? | | ?????????????????????????????????????????????????? | | ?????????????????????????????????????????????????? | | ?????????????????????????????????????????????????? | | ?????????????? ??????????????????????????????????? | | ?????????????? ?????????????????????????????????? | | ??????????????? ????? ?????????????????????????? | | ????????????????? ????# "????????????????????????? | | ?????????????????? ##?#""????????????????????????? | | ??????????????????? ##""????????????????????????? | | ???????????????????? ""#?###??? #??????????????? | | ????????????????????? ## ## ! ##?????????????? | | ??????????????????????# R % ??????????????? | | ??????????????????????#; R ??????????????????? | | ???????????????????????# @ #??????$??????????????? | | ???????????????????????# #?????# ?????????????? | | ??????????## # ?######?# ##???# ??????????????? | | ?????????## # ### #??# ??????????????? | | ?????????# !* #?? ???????????????? | | ????????# | ##?# ????????????????? | | ????????## ## #### ######## #????????????????? | | ????????????#???# ##??## #????????????????? | | ????????????????# ##?? #????????????????? | | ????????????????# #??? #????????????????? | | ????????????????# #???# #?????????????????? | | ???????????????## ###?### #??????????????????? | | ??????????????## ###### #??????????????????? | | ?????????????## ### ##?????????????????? | | ?????????????# ## #?????????????????? | | ?????????????### ## ==##??##????????????? | | ???????????????## ### ### #????????????? | | ????????????????## ##?## ! #????????????? | | ?????????????????# ##???## #????????????? | | ?????????????????## ##?????#[ #????????????? | | ??????????????????# /######### ##???????????? | | ??????????????????# #?# #???????????? | | ??????????????????####?# #???????????? | | ??????????????????####?#"" # # #???????????? | | ??????????????##### ## ####"""" #???????????? | +----------------------------------------------------+ Best States ------------- Heat Dissipation 25 Coolant Potential 50 Energy Generation 15 Energy Capacity 250 Matter Stores 300 Matter Capacity 300 Sight Range 18 Terrain Scan Density 10 Armor Coverage 800 Core Shielding 20 Evasion (%) 40 Recoil Reduction 2 Item Schematics ----------------- None Robot Schematics ------------------ None Fabricated ------------ Nothing Alien Tech Used ----------------- None Achievements -------------- None Challenges ------------ None Game ------ Seed OmegaImpulseFlamer Manual? 0 Play Time 00:18:19 Cumulative 83.4 hours Start 2023.09.28 @ 17:38:14 End 2023.09.28 @ 17:57:27 Sessions 1 Manual Loads 0 Difficulty Rogue Special Mode None Game No. 85 Rogue 49 Adventurer 36 Explorer 0 Win Type - Total 7 Types 2/0/5/0/0/0/0/0/0 Lore% 47 Gallery% 69 Achievement% 58 Wizard Run 0 Options --------- ASCII 0 Keyboard 0 Movement Mouse Keybinds 0 Fullscreen 1 Font 18/SmallcapsGlow Map View 76x50 Tactical HUD 1 Map Filters NONE Filters NONE Steam 1 RUN: 88e54d22-d954-4519-ab0d-aceff0a69259